Cogmind - Beta 13 @@@ ROGUE MODE // 2024.05.23 @ 13:19:27 Player: Barbarossa Result: Destroyed by S-10 Pest with Light Assault Rifle Performance ------------- Evolutions (2) 1000 Regions Visited (3) 600 Robots Destroyed (52) 260 Value Destroyed (1340) 1340 Prototype IDs (1) 20 Alien Tech Used (0) 0 Bonus (33) 33 TOTAL SCORE: 3253 Bonus ------- High Alert Combat Kills 33 Cogmind --------- Core Integrity 0/550 Matter 277/300 Energy 129/275 System Corruption 0% Temperature Warm (190) Movement Core (550) Ox10 Location -8/Materials Parts ------- > --- POWER (1) -------- Deuterium Engine > --- PROPULSION (6) --- (None) > --- UTILITY (2) ------ Large Storage Unit Signal Interpreter > --- WEAPON (2) ------- Beam Rifle > --- INVENTORY (15) --- Improved Cooling System Improved Cooling System Improved Propulsion Shielding Improved Propulsion Shielding Hardened Light Armor Plating Beam Rifle Spread Laser Spread Laser Plasma Cutter Scythe Peak State ------------ > --- POWER ------------ Deuterium Engine > --- PROPULSION ------- Improved Treads Improved Treads Improved Treads Improved Treads Wheel Compact Wheel > --- UTILITY ---------- Large Storage Unit Signal Interpreter > --- WEAPON ----------- Scythe Scythe > --- INVENTORY -------- Deuterium Engine Deuterium Engine Cooling System Cooling System Propulsion Shielding Hardened Light Armor Plating Beam Rifle Beam Rifle Beam Rifle Spread Laser Spread Laser Plasma Cutter Scythe Scythe [Rating: 24] Favorites ----------- Power Deuterium Engine Engine Deuterium Engine Propulsion Light Treads Treads Light Treads Leg Aluminum Leg Wheel Wheel Utility Signal Interpreter Storage Large Storage Unit Processor Signal Interpreter Weapon Scythe Energy Gun EM Pulse Gun Ballistic Gun Heavy Assault Rifle Slashing Weapon Scythe Build | -11 -10 -9 -8 ------- Run | Yrd Mat Mat Mat Slots Evolved 4 | . . 2 2 Power . | . . . . Propulsion 4 | . . 2 2 Utility . | . . . . Weapon . | . . . . Parts Attached 40 | . 6 20 14 Power 6 | . . 3 3 Engine 6 | . . 3 3 Core . | . . . . Reactor . | . . . . Propulsion 20 | . 2 11 7 Treads 14 | . . 8 6 Leg . | . . . . Wheel 6 | . 2 3 1 Hover . | . . . . Flight . | . . . . Utility 2 | . 2 . . Device . | . . . . Storage 1 | . 1 . . Processor 1 | . 1 . . Hackware . | . . . . Protection . | . . . . Artifact . | . . . . Weapon 12 | . 2 6 4 Energy Gun 7 | . 2 3 2 Energy Cannon . | . . . . Ballistic Gun 1 | . . 1 . Ballistic Cannon . | . . . . Launcher . | . . . . Special Weapon . | . . . . Impact Weapon . | . . . . Slashing Weapon 4 | . . 2 2 Piercing Weapon . | . . . . Special Melee Weapon . | . . . . Unidentified Prototypes 1 | . . 1 . Parts Lost 27 | . . 10 17 Power 5 | . . 2 3 Propulsion 15 | . . 5 10 Utility . | . . . . Weapon 7 | . . 3 4 Highest Loss Streak 10 | . . 4 10 To Critical Strikes . | . . . . Average Slot Usage (%) 92 | . 94 97 81 Engine 10 | . 14 10 8 Treads 20 | . . 21 27 Leg 2 | . 18 . . Wheel 16 | . 9 20 10 Storage 10 | . 14 11 9 Processor 10 | . 8 11 9 Energy Gun 11 | . 28 12 1 Slashing Weapon 9 | . . 7 16 Naked Turns . | . . . . Heaviest Build 35 | 11 27 35 33 Greatest Support 46 | 20 26 46 26 Greatest Overweight (x) 10 | . 1 3 10 Average Overweight (x) . | . . . 1 Largest Inventory Capacity 15 | . 15 15 15 Average Capacity 14 | . 10 15 15 Most Carried 15 | . 8 15 15 Average Carried 12 | . 7 12 14 Final Capacity 15 | 8 15 15 15 Final Carried 15 | 6 7 15 10 Class Distribution -------------------- 79% | Mutant 20% | Scavenger-Mutant Dominant Class ---------------- Mutant | -10/Materials Mutant | -9/Materials Scavenger-Mutant | -8/Materials Resources | -11 -10 -9 -8 ----------- Run | Yrd Mat Mat Mat Matter Collected 555 | 200 . 278 77 Remotely . | . . . . Salvage Created 2097 | . 101 1275 721 Parts 130 | . 5 80 45 Haulers Intercepted 2 | . . 2 . Recyclers Shooed 5 | . 1 3 1 Parts Field Recycled . | . . . . Retrieved Matter . | . . . . Parts Self-Destructed . | . . . . Prevented . | . . . . Kills | -11 -10 -9 -8 ------- Run | Yrd Mat Mat Mat Combat Hostiles Destroyed 35 | . 2 21 12 Melee 17 | . . 8 9 Guns 14 | . 1 10 3 AOE 4 | . 1 3 . Classes Destroyed 10 | . 2 6 2 Worker 5 | . . 2 3 Tunneler 2 | . . 1 1 Hauler 2 | . . 2 . Recycler 5 | . . 4 1 Watcher 3 | . 1 2 . Swarmer 9 | . . 7 2 Grunt 14 | . 2 8 4 Duelist 1 | . . . 1 Sentry 9 | . . 6 3 Hunter 2 | . . . 2 Best Kill Streak 8 | . 3 6 8 Combat Bots Only 5 | . 2 4 5 Max Kills in Single Turn 2 | . 1 2 2 Gunslinging 1 | . . 1 . Exploded 1 | . 1 1 . Melee 1 | . . 1 1 Uniques/NPCs Destroyed . | . . . . Combat | -11 -10 -9 -8 -------- Run | Yrd Mat Mat Mat Hostile Shots Fired 317 | . 1 135 181 Missed 67 | . . 34 33 Damage Taken 3477 | . 12 1304 2161 Core 880 | . 12 311 557 Absorbed by Shields . | . . . . Core Remaining (%) 72 | 100 95 22 . Volleys Fired 57 | . 4 42 11 Largest 2 | . 2 2 2 Hottest 112 | . 80 106 112 Shots Fired 100 | . 8 73 19 Gun 100 | . 8 73 19 Cannon . | . . . . Launcher . | . . . . Special . | . . . . Kinetic 16 | . . 16 . Thermal 40 | . . 21 19 Explosive . | . . . . Electromagnetic 44 | . 8 36 . Robot Hit Streak 18 | . 4 18 5 Robot Miss Streak 7 | . 1 7 4 Penetration Max . | . . . . Secondary Targets 1 | . . 1 . Max Gunslinging Chain 1 | . . 1 . Shots Hit Robots 124 | . 5 68 51 Core Hits 64 | . 4 40 20 Critical Kills . | . . . . Critical Parts Destroyed . | . . . . Critical Strikes 13 | . . 7 6 Burn 5 | . . 4 1 Sever 8 | . . 3 5 Melee Attacks 82 | . . 31 51 Impact . | . . . . Slashing 82 | . . 31 51 Piercing . | . . . . Sneak Attacks 11 | . . 8 3 Combat Hostiles . | . . . . Follow-up Attacks 8 | . . 3 5 Damage Inflicted 3502 | . 163 1867 1472 Guns 919 | . 78 655 186 Cannons . | . . . . Explosions 318 | . 85 233 . Melee 2252 | . . 966 1286 Ramming 13 | . . 13 . Kinetic 149 | . . 149 . Thermal 691 | . 85 420 186 Explosive . | . . . . Electromagnetic 397 | . 78 319 . Impact . | . . . . Slashing 2252 | . . 966 1286 Piercing . | . . . . Highest Corruption . | . . . . Average Corruption . | . . . . Corruption Purged . | . . . . Corruption Blocked . | . . . . Overload Shots . | . . . . Overflow Damage 153 | . . 71 82 Projectiles . | . . . . Explosions 22 | . . 22 . Melee 131 | . . 49 82 Knockbacks . | . . . . Impact . | . . . . Kinetic . | . . . . Secondary . | . . . . Self-Inflicted Damage 88 | . . 88 . Shots 3 | . . 3 . Rammed 1 | . . 1 . Targets Rammed 1 | . . 1 . Kicked . | . . . . Crushed . | . . . . Highest Temperature 398 | . 60 398 321 Average Temperature 105 | . 27 92 184 Received Heat Transfer 1251 | . 6 498 747 Effects 3 | . . 3 . Interference 2 | . . 2 . Short Circuit 1 | . . 1 . Siege Activations . | . . . . Robots Corrupted . | . . . . Combat Hostiles . | . . . . Parts Fried 2 | . . 2 . Impact Corruptions . | . . . . Robots Melted . | . . . . Combat Hostiles . | . . . . Parts Melted 5 | . . 2 3 Heat Transferred 1819 | . 100 1164 555 Parts Sabotaged . | . . . . Parts Stolen . | . . . . Parts Stripped . | . . . . Power Chain Reactions 6 | . 1 5 . Alert | -11 -10 -9 -8 ------- Run | Yrd Mat Mat Mat Peak Influence 575 | . 94 575 317 Initial 118 | . . 39 118 Average 211 | . 51 257 197 Maximum Alert Level 2 | . . 2 1 Low Security (%) 53 | . 100 46 42 Level 1 35 | . . 33 57 Level 2 10 | . . 19 . Level 3 . | . . . . Level 4 . | . . . . Level 5 . | . . . . High Security . | . . . . Max Security . | . . . . Squads Dispatched 3 | . . 2 1 Investigation 1 | . . . 1 Extermination . | . . . . Reinforcement 2 | . . 2 . Assault . | . . . . Garrison . | . . . . Intercept . | . . . . Searches Triggered . | . . . . Construction Impeded . | . . . . Haulers Reinforced . | . . . . Active Scanning Responses . | . . . . Cargo Convoy Interrupts . | . . . . Stealth | -11 -10 -9 -8 --------- Run | Yrd Mat Mat Mat Distress Signals 3 | . . 1 2 Communications Jammed . | . . . . Distress Signals . | . . . . Times Spotted 55 | . 2 34 19 Peak Tracking Total 6 | . 1 6 6 Tactical Retreats 7 | . . 4 3 Traps | -11 -10 -9 -8 ------- Run | Yrd Mat Mat Mat Traps Triggered 2 | . . 1 1 Indirectly . | . . . . Trap Hack Attempts . | . . . . Triggered . | . . . . Disarmed . | . . . . Reprogrammed . | . . . . Reused . | . . . . Traps Extracted . | . . . . Installed . | . . . . Triggered . | . . . . Machines | -11 -10 -9 -8 ---------- Run | Yrd Mat Mat Mat Machines Disabled 2 | . . 2 . Max in Single Turn 2 | . . 2 . Machines Repaired . | . . . . Machines Dismantled . | . . . . Machines Sabotaged . | . . . . Overloaded Fab Kills . | . . . . Hacking | -11 -10 -9 -8 --------- Run | Yrd Mat Mat Mat Machines Accessed 9 | . 2 3 4 Terminals 8 | . 2 2 4 Fabricators . | . . . . Repair Stations 1 | . . 1 . Recycling Units . | . . . . Scanalyzers . | . . . . Garrison Access . | . . . . Total Hacks 22 | . 5 7 10 Successful 8 | . 2 3 3 Failed 14 | . 3 4 7 Catastrophic 2 | . 1 1 . Database Lockouts . | . . . . Manual 19 | . 5 4 10 Terminals 19 | . 5 4 10 Fabricators . | . . . . Repair Stations 3 | . . 3 . Recycling Units . | . . . . Scanalyzers . | . . . . Garrison Access . | . . . . Terminal Hacks 1 | . . 1 . Unreport Threat 1 | . . 1 . Fabricator Hacks . | . . . . Repair Station Hacks 1 | . . 1 . Scan Component 1 | . . 1 . Recycling Unit Hacks . | . . . . Scanalyzer . | . . . . Garrison Access Hacks . | . . . . Unauthorized Hacks 6 | . 2 1 3 Terminals 6 | . 2 1 3 Botnet 6 | . 2 1 3 Fabricators . | . . . . Repair Stations . | . . . . Recycling Units . | . . . . Scanalyzers . | . . . . Garrison Access . | . . . . Data Cores Recovered . | . . . . Used . | . . . . Hacking Detections 9 | . 2 3 4 Full Trace Events . | . . . . Feedback Events . | . . . . Feedback Blocked . | . . . . Robot Schematics Acquired . | . . . . Robots Built . | . . . . Authchips . | . . . . Time . | . . . . Total Robot Build Rating . | . . . . Part Schematics Acquired . | . . . . Parts Built . | . . . . Authchips . | . . . . Time . | . . . . Total Part Build Rating . | . . . . Parts Repaired . | . . . . Time . | . . . . Parts Recycled . | . . . . Recycled Matter . | . . . . Retrieved Matter . | . . . . Retrieved Components . | . . . . Parts Scanalyzed . | . . . . Part Schematics Acquired . | . . . . Parts Damaged . | . . . . Bothacking | -11 -10 -9 -8 ------------ Run | Yrd Mat Mat Mat Used RIF Installer . | . . . . Robots Hacked . | . . . . Non-combat . | . . . . Combat . | . . . . Robot Hacks Applied . | . . . . Relay Couplers Released . | . . . . Fabnet Peak Effective % . | . . . . Robots Rewired . | . . . . Allies Hacked . | . . . . Hacks Repelled . | . . . . Allies | -11 -10 -9 -8 -------- Run | Yrd Mat Mat Mat Total Allies . | . . . . Largest Group . | . . . . Highest-Rated Group . | . . . . Highest-Rated Ally . | . . . . Total Orders . | . . . . Ally Attacks . | . . . . Total Damage . | . . . . Kills . | . . . . Allies Corrupted . | . . . . Allies Melted . | . . . . Intel | -11 -10 -9 -8 ------- Run | Yrd Mat Mat Mat Robot Analysis Total . | . . . . Derelict Logs Recovered . | . . . . Drone Launches . | . . . . Drone Recoveries . | . . . . Exploration | -11 -10 -9 -8 ------------- Run | Yrd Mat Mat Mat Turns Passed 1417 | . 202 805 410 Spaces Moved 783 | 1 157 460 165 Core 2 | . . . 2 Treads 94 | . . 59 35 Legs 92 | 1 91 . . Wheels 595 | . 66 401 128 Hover . | . . . . Flight . | . . . . Fastest Speed 90 | 120 90 105 105 Average Speed 120 | 120 113 115 141 Slowest Speed 550 | 120 120 240 550 Overloaded Moves . | . . . . Propulsion Burnouts . | . . . . Robots Hopped . | . . . . Cave-ins Triggered . | . . . . Exploration Rate (%) 23 | 2 32 40 20 Regions Visited 3 Branch Regions . Pre-discovered Areas . | . . . . Known Exits Taken 2 | . 1 1 . Unknown Exits Taken 1 | 1 . . . Scrap Searched . | . . . . Spaces Dug . | . . . . Terrain Destroyed 19 | . 2 17 . Melee . | . . . . Projectile . | . . . . AOE 19 | . 2 17 . Terrain Rammed . | . . . . Walls Destroyed . | . . . . Machines Disabled . | . . . . Actions | -11 -10 -9 -8 --------- Run | Yrd Mat Mat Mat Total 1048 | . 172 622 254 Wait 48 | . . 39 9 Move 780 | . 156 459 165 Hop . | . . . . Pick Up 33 | . 2 25 6 Fast Attach 12 | . 2 5 5 Attach 19 | . . 10 9 Detach 2 | . 1 . 1 Swap 9 | . 4 5 . Drop 16 | . 3 10 3 Fire 57 | . 4 42 11 Melee 71 | . . 26 45 Ram 1 | . . 1 . Kick . | . . . . Crush . | . . . . Escape Stasis . | . . . . Rewire . | . . . . Trap . | . . . . Miscellaneous . | . . . . Route ------- -11/Scrapyard -10/Materials -9/Materials -8/Materials History --------- Turn | Location | Event 1 | -11/Scrapyard | Discovered new exit (range 0) 1 | -11/Scrapyard | Entered Materials 187 | -10/Materials | Discovered new exit (range 16) 201 | -10/Materials | Identified exit to Materials 203 | -10/Materials | Entered another Materials area 203 | -9/Materials | Evolved 2 slots: Propulsion x2 301 | -9/Materials | Build established: Mutant 659 | -9/Materials | Core integrity fell below 50% 677 | -9/Materials | Lost 4 parts (3n1w) 1000 | -9/Materials | Discovered new exit (range 6) 1006 | -9/Materials | Identified exit to Materials 1008 | -9/Materials | Entered another Materials area 1008 | -8/Materials | Evolved 2 slots: Propulsion x2 1208 | -8/Materials | Lost 5 parts (1p4n) 1352 | -8/Materials | Core integrity fell below 50% 1382 | -8/Materials | Core integrity fell below 20% 1395 | -8/Materials | Lost 10 parts (1p6n3w) 1418 | -8/Materials | Destroyed by S-10 Pest with Light Assault Rifle Last Messages --------------- 01384_ R-06 Scavenger collects Imp. Aluminum Leg. 01392_ R-06 Scavenger destroyed. 01395_ S-10 Pest destroyed. 01398_ M-28 Smith fits Backup Propulsion III on U-05 Engineer. 01404_ Imp. Ion Engine destroyed. 01404_ K-01 Serf destroyed. 01404_ R-06 Scavenger collects Wheel. 01406_ Beam Rifle destroyed. 01407_ R-06 Scavenger collects Flight Unit. 01410_ Critical hit (Burn: +37). 01410_ R-06 Scavenger collects Sml. Matter Pod. 01411_ Y-45 Defender suffers critical hit (Burn). 01411_ Heat Sink melted. 01411_ Lgt. Armor Plating melted. 01411_ Y-45 Defender destroyed. 01416_ R-06 Scavenger collects Lgt. Armor Plating. Map ----- +----------------------------------------------------+ | ???????????????????????????????????????????????# | | ???????????????????????????????????????????????# | | ???????????????????????????????????????????????# | | ???????????????????????????????????????????????# | | ???????????????????????????????????????????????# | | ???????????????????????????????????????????????# | | ???????????????????????????????????????????????# | | ??????????????????????? ?????????????????????# | | ??????????????????????# #?????????????########## | | ??????????????????????# #?????????????# "T" | | ??????????????????????# #?????????????# | | ??????????????????????# #?????????????# | | ??????????????????????# #???????????### | | ??????????????????????# #???????????#"" | | ??????????????????????# #???????????#"T | | ??????????????????????# #???????????#"" | | ??????????????????????# #########???### | | ??????????????????????# r##[[!!!!#????#" | | ??????????????????????#a ##[[ !!#????#T """ | | ?????????????????????## ## r ! #????#" """" | | ?????????????????????# # % ####### """" | | ????#####+############ % %% """" | | ?? !% % """ | | ?? = % = | | ?? %= % ##########+### | | ???####################*=@##???????# ########### | | ??????????????????????#%!=#????????# #?????????? | | ??????????????????????#=%*#????????# !#?????????? | | ??????????????????????#%=*+ ???????#" #?????????? | | ??????????????????????#=!!#=!??????#T #?????????? | | ??????????????????????# =!# ?????#" #?????????? | | ??????????????????????# #? ""????# #?????????? | | ??????????????????????# #? """???#####?????????? | | ??????????????????????# #??""??????????????????? | | ??????????????????????# #???""?????????????????? | | ??????????????????????+ r #??????????????????????? | | ??????????????????????# #??????????????????????? | | ??????????????????????# %[#??????????????????????? | | ??????????????????????#[=[#??????????????????????? | | ??????????????????????#=%*???????????????????????? | | ??????????????????????? %%???????????????????????? | | ?????????????????????????????????????????????????? | | ?????????????????????????????????????????????????? | | ?????????????????????????????????????????????????? | | ?????????????????????????????????????????????????? | | ?????????????????????????????????????????????????? | | ?????????????????????????????????????????????????? | | ?????????????????????????????????????????????????? | | ?????????????????????????????????????????????????? | | ?????????????????????????????????????????????????? | +----------------------------------------------------+ Best States ------------- Heat Dissipation 31 Energy Generation 14 Energy Capacity 275 Matter Stores 300 Matter Capacity 300 Sight Range 16 Terrain Scan Density 10 Evasion (%) 55 Recoil Reduction 2 Item Schematics ----------------- None Robot Schematics ------------------ None Fabricated ------------ Nothing Alien Tech Used ----------------- None Achievements -------------- None Challenges ------------ None Game ------ Seed RestorationSapperStreamer Manual? 0 Play Time 00:16:52 Cumulative 186.8 hours Start 2024.05.23 @ 13:04:57 End 2024.05.23 @ 13:19:27 Sessions 1 Manual Loads 0 Difficulty Rogue Special Mode None Game No. 345 Rogue 345 Adventurer 0 Explorer 0 Win Type - Total 0 Types 0/0/0/0/0/0/0/0/0 Lore% 43 Gallery% 55 Achievement% 39 Wizard Run 0 Options --------- Layout 1 ASCII 0 Keyboard 0 Movement Mouse Keybinds 0 Fullscreen 1 Font 24/Smallcaps Map View 50x40 Zoom Use 0% Tactical HUD 1 Map Filters NONE Filters NONE Steam 1 RUN: 9ca916f6-75f1-47a4-b884-4f2ed0018411